Cogmind - Beta 15 @@@ ROGUE MODE // 2025.06.21 @ 15:09:48 Player: SALT Result: Destroyed by G-67 Veteran with Field Laser Performance ------------- Evolutions (7) 3500 Regions Visited (14) 2800 Robots Destroyed (169) 845 Value Destroyed (7543) 7543 Prototype IDs (5) 100 Alien Tech Used (0) 0 Bonus (891) 891 TOTAL SCORE: 15679 Bonus ------- High Alert Combat Kills 195 Follower Combat Kills 196 Scanned by Researcher 500 Cogmind --------- Core Integrity 0/1300 Matter 290/300 Energy 95/100 System Corruption 12% Temperature Cool (0) Movement Flying (40) Location -3/Testing Parts ------- > --- POWER (2) -------- (None) > --- PROPULSION (4) --- Xenon Bombardment Thruster > --- UTILITY (11) ----- Advanced Signal Interpreter Graphene Brace > --- WEAPON (4) ------- (None) > --- INVENTORY (5) ---- Flexi-carbon Leg Advanced Heat Sink Advanced Heat Sink Advanced Heat Sink Improved Force Field Peak State ------------ > --- POWER ------------ Micro Fission Core Light Antimatter Reactor > --- PROPULSION ------- Flexi-carbon Leg Flexi-carbon Leg Myomer Leg Improved Thunder Leg > --- UTILITY ---------- Advanced Heat Sink Advanced Heat Sink Advanced Heat Sink Advanced Cooling System Medium Storage Unit Improved Targeting Computer Improved Targeting Computer Improved Target Analyzer Improved Weapon Cycler Graphene Brace Improved Focal Shield > --- WEAPON ----------- High-powered Shock Rifle High-powered Shotgun Coil Gun Coil Gun > --- INVENTORY -------- Advanced Heat Sink Improved Energy Well Heavy Armor Plating Improved Force Field Tesla Rifle Field Laser Plasma Rifle Plasma Rifle Improved Remote Datajack [Rating: 111] Favorites ----------- Power Cooled Ion Engine Engine Cooled Ion Engine Power Core Micro Nuclear Core Reactor Light Antimatter Reactor Propulsion Flexi-carbon Leg Treads Light Treads Leg Flexi-carbon Leg Wheel Armored Huge Wheel Flight Unit Cesium-ion Thruster Utility Improved Targeting Computer Device Advanced Heat Sink Storage Medium Storage Unit Processor Improved Targeting Computer Protection Hardened Medium Armor Plating Weapon Gatling Laser Energy Gun Gatling Laser Energy Cannon Heavy Plasma Cannon Ballistic Gun Gauss Rifle Ballistic Cannon Advanced Assault Cannon Launcher EMP Blaster Special Weapon Plasma Cutter Slashing Weapon Mining Claw Piercing Weapon Lance Build | -11 -10 -10 -9 -8 -7 -7 -7 -7 -6 -5 -5 -4 -3 -3 ------- Run | Yrd Mat Min Mat Mat Fac Was Fac Sto Fac Fac Ext Fac Res Tes Slots Evolved 14 | . . . 2 2 2 . . . 2 2 . 2 2 . Power 1 | . . . . . . . . . . 1 . . . . Propulsion 2 | . . . 1 . . . . . . 1 . . . . Utility 9 | . . . 1 2 1 . . . 2 . . 1 2 . Weapon 2 | . . . . . 1 . . . . . . 1 . . Parts Attached 188 | 6 10 4 3 19 25 . 12 11 9 7 21 34 6 21 Power 23 | 1 1 1 . 2 3 . 3 . 1 . 5 3 1 2 Engine 14 | 1 1 . . 2 3 . 2 . 1 . 3 1 . . Core 5 | . . 1 . . . . 1 . . . 2 1 . . Reactor 4 | . . . . . . . . . . . . 1 1 2 Propulsion 48 | 2 2 2 1 7 6 . 1 2 3 4 7 5 1 5 Treads 6 | . . . . 3 1 . 1 1 . . . . . . Leg 37 | 2 2 2 1 3 3 . . 1 3 4 7 4 1 4 Wheel 3 | . . . . . 2 . . . . . . 1 . . Hover . | . . . . . . . . . . . . . . . Flight 2 | . . . . 1 . . . . . . . . . 1 Utility 61 | 1 3 . 2 6 7 . 4 5 3 1 4 13 4 8 Device 31 | . . . . 2 1 . 3 2 1 1 4 9 4 4 Storage 6 | 1 2 . . 1 . . . 1 . . . 1 . . Processor 13 | . 1 . 2 . 2 . . 1 1 . . 3 . 3 Hackware . | . . . . . . . . . . . . . . . Protection 11 | . . . . 3 4 . 1 1 1 . . . . 1 Artifact . | . . . . . . . . . . . . . . . Weapon 56 | 2 4 1 . 4 9 . 4 4 2 2 5 13 . 6 Energy Gun 28 | . 3 . . 3 4 . 1 2 2 1 3 3 . 6 Energy Cannon 2 | . . . . . 1 . . . . . . 1 . . Ballistic Gun 16 | 2 . . . 1 3 . 2 1 . . 2 5 . . Ballistic Cannon 5 | . . . . . 1 . 1 . . 1 . 2 . . Launcher 2 | . . 1 . . . . . . . . . 1 . . Special Weapon 1 | . 1 . . . . . . . . . . . . . Impact Weapon . | . . . . . . . . . . . . . . . Slashing Weapon 1 | . . . . . . . . 1 . . . . . . Piercing Weapon 1 | . . . . . . . . . . . . 1 . . Special Melee Weapon . | . . . . . . . . . . . . . . . Unidentified Prototypes 3 | . . . . 2 1 . . . . . . . . . Parts Lost 83 | . . 1 2 2 3 1 . 4 1 5 7 25 . 32 Power 10 | . . . . . . . . . . . 3 3 . 4 Propulsion 18 | . . . 1 2 . . . 1 . 1 2 6 . 5 Utility 29 | . . . . . 1 . . 3 . 4 1 7 . 13 Weapon 26 | . . 1 1 . 2 1 . . 1 . 1 9 . 10 Highest Loss Streak 22 | . . 1 2 1 1 1 . 4 1 2 4 22 . 12 To Critical Strikes 1 | . . . . . . . . 1 . . . . . . Average Backups 8 | 2 7 8 7 7 9 10 9 9 9 8 9 8 8 8 Power 1 | . 1 1 2 1 2 2 2 2 2 1 . . 1 . Propulsion . | 2 1 1 1 . . . . . 1 2 2 . . 1 Utility 2 | . 1 2 2 2 2 3 4 2 1 . . 2 . 3 Weapon 3 | . 2 2 2 3 3 4 2 3 2 2 4 3 4 1 Tool/Special . | . . . . . . . . . . . . . . . Unused Backups 26 | . 7 . . 1 3 . 4 1 1 . 2 1 1 5 Power 3 | . . . . 1 1 . . . . . . . 1 . Propulsion 6 | . 4 . . . . . 1 . . . . . . 1 Utility 10 | . 2 . . . 1 . 2 1 1 . 1 1 . 1 Weapon 3 | . 1 . . . 1 . . . . . 1 . . . Tool/Special 4 | . . . . . . . 1 . . . . . . 3 Average Slot Usage (%) 94 | . 98 100 98 98 95 86 91 91 97 97 97 91 98 83 Engine 5 | . 14 7 . 8 7 7 2 7 6 11 8 . . . Core 2 | . . 6 11 . . . 4 . . . 1 7 4 2 Treads 4 | . . . . 11 11 . 6 4 1 . . . . . Leg 12 | . 28 28 31 13 3 4 . 1 14 21 22 17 14 13 Wheel 2 | . . . . . 3 7 7 7 1 . . 1 3 . Device 11 | . . . . 8 7 7 7 7 6 8 15 15 31 25 Storage 7 | . 23 14 11 9 7 7 7 8 9 5 5 5 4 3 Processor 19 | . 3 14 22 18 18 23 23 22 23 23 23 22 14 18 Protection 5 | . . . . 8 11 7 7 5 12 7 . . . . Energy Gun 9 | . 8 4 . 10 12 12 6 6 10 12 13 6 4 5 Ballistic Gun 7 | . 17 21 13 5 7 . 7 13 5 . 1 7 14 7 Ballistic Cannon 1 | . . . . . 1 7 7 1 . 2 1 2 . . Peak Build Rating 111 | 6 9 10 14 26 47 45 48 48 59 72 77 93 108 111 Average Rating 53 | 4 8 8 12 22 38 41 44 46 53 65 70 79 100 100 On Entrance 41 | . 6 9 10 12 25 45 36 48 41 58 57 72 90 108 Naked Turns . | . . . . . . . . . . . . . . . Heaviest Build 65 | 11 20 20 20 33 45 42 42 42 53 56 44 58 65 54 Greatest Support 93 | 20 20 20 30 63 63 28 28 28 54 89 84 78 88 93 Greatest Overweight (x) 10 | 1 . . . 10 4 1 1 1 2 . . 4 1 2 Average Overweight (x) . | . . . . . . 1 1 1 . . . . . . Largest Inventory Capacity 10 | 8 10 10 10 10 10 10 10 10 10 10 10 10 10 10 Average Capacity 9 | 6 8 10 10 10 10 10 10 10 10 10 10 10 10 9 Most Carried 10 | 6 8 10 9 10 10 10 10 10 10 10 10 10 10 10 Average Carried 8 | 3 7 8 7 7 9 10 9 9 9 8 9 8 8 8 Final Capacity 10 | 8 10 10 10 10 10 10 10 10 10 10 10 10 10 5 Final Carried 10 | 6 8 10 7 10 10 10 10 10 9 10 10 9 10 5 Class Distribution -------------------- 41% | Gunner 35% | Scavenger-Gunner 12% | Mutant 11% | Scavenger-Mutant Dominant Class ---------------- Mutant | -10/Materials Mutant | -10/Mines Scavenger-Mutant | -9/Materials Scavenger-Mutant | -8/Materials Gunner | -7/Factory Gunner | -7/Waste Gunner | -7/Factory Gunner | -7/Storage Gunner | -6/Factory Gunner | -5/Factory Scavenger-Gunner | -5/Extension Scavenger-Gunner | -4/Factory Scavenger-Gunner | -3/Research Scavenger-Gunner | -3/Testing Resources | -11 -10 -10 -9 -8 -7 -7 -7 -7 -6 -5 -5 -4 -3 -3 ----------- Run | Yrd Mat Min Mat Mat Fac Was Fac Sto Fac Fac Ext Fac Res Tes Matter Collected 4461 | 183 47 126 . 509 864 . 174 516 110 229 360 745 75 523 Remotely . | . . . . . . . . . . . . . . . Salvage Created 7576 | . 153 171 17 860 1317 . 231 588 399 261 1241 1145 75 1118 Parts 358 | . 9 8 . 40 70 . 16 25 17 6 52 71 2 42 Haulers Intercepted 1 | . . . . . . . . . . 1 . . . . Recyclers Shooed 10 | . . . . 2 . . 2 . . . 2 2 . 2 Parts Field Recycled . | . . . . . . . . . . . . . . . Retrieved Matter . | . . . . . . . . . . . . . . . Parts Self-Destructed . | . . . . . . . . . . . . . . . Prevented . | . . . . . . . . . . . . . . . Kills | -11 -10 -10 -9 -8 -7 -7 -7 -7 -6 -5 -5 -4 -3 -3 ------- Run | Yrd Mat Min Mat Mat Fac Was Fac Sto Fac Fac Ext Fac Res Tes Combat Hostiles Destroyed 133 | . 4 4 . 18 32 . 6 9 6 4 15 20 1 14 Melee 2 | . . . . . . . . . . . . 2 . . Guns 102 | . 3 3 . 12 29 . 4 9 5 2 15 10 1 9 Cannons 5 | . . . . . 2 . 2 . . . . 1 . . AOE 18 | . 1 1 . 5 1 . . . 1 2 . 7 . . Classes Destroyed 17 | . 1 . 1 5 3 . . 2 1 1 1 2 . . Worker 2 | . . . . . 1 . . 1 . . . . . . Builder 11 | . . . . . . . . 1 . . 2 8 . . Tunneler 2 | . . . . . . . . . 1 . 1 . . . Hauler 1 | . . . . . . . . . . 1 . . . . Recycler 6 | . . . . 1 1 . . . . . 2 1 . 1 Operator 4 | . . . 1 . . . 1 2 . . . . . . Watcher 10 | . . . . . 3 . . 1 1 . 3 . . 2 Swarmer 29 | . . . . 4 13 . 2 . . . . 5 . 5 Grunt 53 | . 4 4 . 9 9 . . 5 6 1 7 3 . 5 Brawler 2 | . . . . . . . . 1 . 1 . . . . Duelist 2 | . . . . 1 . . . . . . 1 . . . Sentry 15 | . . . . 3 2 . 3 2 . . 1 3 1 . Specialist 2 | . . . . . . . . . . . . 2 . . Hunter 14 | . . . . 1 2 . . 1 . 2 4 1 . 3 Programmer 13 | . . . . . 6 . 1 . . . . 5 . 1 Heavy 1 | . . . . . . . . . . . . 1 . . Behemoth 2 | . . . . . . . . . . . 2 . . . Best Kill Streak 15 | . 2 4 1 9 5 . 3 4 4 3 5 15 1 6 Combat Bots Only 8 | . 2 4 . 8 4 . 3 3 3 2 3 4 1 6 Max Kills in Single Turn 6 | . 1 1 1 2 2 . 1 2 2 2 1 6 1 2 Gunslinging 1 | . . . . . 1 . . . . . . . . 1 Exploded 4 | . 1 1 . 2 1 . . . 1 2 . 4 . . Melee 1 | . . . . . . . . . . . . 1 . . Uniques/NPCs Destroyed . | . . . . . . . . . . . . . . . Combat | -11 -10 -10 -9 -8 -7 -7 -7 -7 -6 -5 -5 -4 -3 -3 -------- Run | Yrd Mat Min Mat Mat Fac Was Fac Sto Fac Fac Ext Fac Res Tes Hostile Shots Fired 1594 | . 14 31 48 73 207 1 86 85 23 58 107 304 6 551 Missed 577 | . 5 3 15 25 74 . 39 26 4 22 40 120 2 202 Hits 1017 | . 9 28 33 48 133 1 47 59 19 36 67 184 4 349 Melee 11 | . . . . 2 . 1 . 6 . 1 1 . . . Projectile 1006 | . 9 28 33 46 133 . 47 53 19 35 66 184 4 349 AOE 2 | . . . . . . . . . . . . 1 . 1 Critical Strikes 36 | . . . 1 3 2 . 1 3 . . 2 11 . 13 Actively Blocked 13 | . . . . . . . . . . . . . . 13 Damage Taken 18230 | . 162 420 419 750 2251 34 402 935 388 1065 1331 3575 54 6444 Core 2903 | . 22 85 69 99 118 . 39 101 19 83 137 831 . 1300 Absorbed by Shields 38 | . . . . . . . . . . . . . 38 . Ignored by Resistances 364 | . . . . . 26 . . . . . . . 13 325 Core Remaining (%) 73 | 100 . 57 82 82 . . . 63 97 . 78 27 . . Volleys Fired 406 | . 13 10 5 44 79 . 15 36 18 12 53 48 3 70 Largest 4 | . 2 2 2 2 3 . 3 3 3 3 3 4 4 4 Hottest 254 | . 85 65 53 126 160 . 148 148 188 250 234 254 145 228 Shots Fired 1040 | . 24 19 7 87 224 . 45 93 48 29 153 122 12 177 Gun 927 | . 21 18 5 83 194 . 30 86 48 19 149 85 12 177 Cannon 96 | . . . . . 28 . 15 7 . 10 4 32 . . Launcher 14 | . . 1 2 4 2 . . . . . . 5 . . Special 3 | . 3 . . . . . . . . . . . . . Kinetic 493 | . 12 14 5 36 105 . 30 64 18 10 24 77 9 89 Thermal 427 | . 7 . . 47 99 . 15 29 23 19 129 37 . 22 Explosive 5 | . . . . . . . . . . . . 5 . . Electromagnetic 115 | . 5 5 2 4 20 . . . 7 . . 3 3 66 Robot Hit Streak 30 | . 5 6 6 19 21 . 10 11 9 30 23 17 8 18 Robot Miss Streak 6 | . 1 1 2 3 5 . 6 5 4 3 6 3 2 6 Penetration Max 1 | . . . . . 1 . . 1 1 . 1 1 . 1 Secondary Targets 16 | . . 2 . 1 3 . . 1 2 . 4 . . 3 Max Gunslinging Chain 1 | . . 1 . 1 1 . . 1 1 . 1 . . 1 Shots Hit Robots 709 | . 13 14 4 63 158 . 29 67 36 21 99 80 8 117 Core Hits 420 | . 6 9 3 38 90 . 15 34 25 17 75 61 5 42 Critical Kills 6 | . . . . 2 . . . 1 . . . 1 . 2 Critical Parts Destroyed 10 | . . . . . . . . 2 . . 1 2 . 5 Critical Strikes 45 | . 1 . . 2 9 . 1 3 . 2 5 7 1 14 Burn 18 | . 1 . . . 8 . . . . 1 4 2 . 2 Destroy 16 | . . . . 2 . . . 3 . . 1 3 . 7 Blast 3 | . . . . . 1 . 1 . . 1 . . . . Corrupt 6 | . . . . . . . . . . . . . 1 5 Impale 2 | . . . . . . . . . . . . 2 . . Melee Attacks 19 | . . . . . . . . 6 . 7 . 6 . . Impact . | . . . . . . . . . . . . . . . Slashing 13 | . . . . . . . . 6 . 7 . . . . Piercing 6 | . . . . . . . . . . . . 6 . . Sneak Attacks . | . . . . . . . . . . . . . . . Combat Hostiles . | . . . . . . . . . . . . . . . Follow-up Attacks . | . . . . . . . . . . . . . . . Damage Inflicted 17139 | . 304 195 90 1213 3467 . 674 1312 786 676 2440 3184 177 2621 Guns 13427 | . 199 154 28 956 2979 . 425 1260 652 280 2405 1397 177 2515 Cannons 1490 | . . . . . 352 . 246 52 . 160 34 646 . . Explosions 2004 | . 105 41 56 250 136 . . . 134 231 . 999 . 52 Melee 140 | . . . . . . . . . . . . 140 . . Ramming 78 | . . . 6 7 . . 3 . . 5 1 2 . 54 Kinetic 6366 | . 98 123 28 329 1468 . 382 819 152 160 301 1289 159 1058 Thermal 7633 | . 148 . . 627 1823 . 289 493 491 511 2138 746 . 367 Explosive 810 | . . . . . . . . . . . . 810 . . Electromagnetic 2112 | . 58 72 56 250 176 . . . 143 . . 197 18 1142 Impact . | . . . . . . . . . . . . . . . Slashing . | . . . . . . . . . . . . . . . Piercing 140 | . . . . . . . . . . . . 140 . . Highest Corruption 18 | . 1 1 . . 7 7 7 18 . . . 6 . 12 Average Corruption 4 | . 1 1 . . 3 7 5 14 . . . 3 . 4 Corruption Purged 7 | . . . . . . . 7 . . . . . . . Corruption Blocked . | . . . . . . . . . . . . . . . Effects 78 | . 5 . . . 27 3 15 13 . . . 5 . 10 Message Errors 17 | . . . . . 8 1 2 3 . . . . . 3 Matter Fused 20 | . 2 . . . 6 1 5 3 . . . 2 . 1 Heat Flow Errors 11 | . 2 . . . 3 1 . 3 . . . . . 2 Energy Discharges 8 | . . . . . 2 . 2 2 . . . 1 . 1 Parts Fused 1 | . . . . . . . 1 . . . . . . . Data Loss (minor) 10 | . 1 . . . 3 . 2 1 . . . 1 . 2 Data Loss (major) 4 | . . . . . 2 . 1 . . . . 1 . . Misfires 2 | . . . . . 1 . 1 . . . . . . . Alerts 1 | . . . . . 1 . . . . . . . . . Weapon Failures 4 | . . . . . 1 . 1 1 . . . . . 1 Overload Shots . | . . . . . . . . . . . . . . . Overflow Damage 127 | . . . 8 . 34 . . . . 21 . 62 . 2 Projectiles 59 | . . . . . 34 . . . . . . 25 . . Explosions 29 | . . . 8 . . . . . . 21 . . . . Melee 39 | . . . . . . . . . . . . 37 . 2 Knockbacks 4 | . . . . . . . . . . 1 1 . . 2 Impact 2 | . . . . . . . . . . . . . . 2 Kinetic 2 | . . . . . . . . . . 1 1 . . . Secondary . | . . . . . . . . . . . . . . . Self-Inflicted Damage 950 | . 56 20 . 65 427 . . . 24 357 . 1 . . Shots 16 | . 1 1 . 4 5 . . . 1 4 . . . . Rammed 2 | . . . . . . . 1 . . . . 1 . . Targets Rammed 19 | . . . 3 4 . . 1 . . 1 1 1 . 8 Kicked 17 | . . . 3 4 . . . . . 1 1 . . 8 Crushed . | . . . . . . . . . . . . . . . Highest Temperature 394 | . 226 98 25 165 351 127 209 394 207 184 199 166 . 288 Average Temperature 78 | . 61 60 9 64 54 71 65 137 96 88 84 48 . 66 Received Heat Transfer 3068 | . 60 228 207 288 300 . 96 354 171 111 177 579 8 489 Effects 6 | . . . . . 3 . 1 2 . . . . . . Energy Bleed 1 | . . . . . . . 1 . . . . . . . Interference 5 | . . . . . 3 . . 2 . . . . . . Siege Activations . | . . . . . . . . . . . . . . . Martial Activations . | . . . . . . . . . . . . . . . Shielding Activations . | . . . . . . . . . . . . . . . Robots Disrupted . | . . . . . . . . . . . . . . . Combat Hostiles . | . . . . . . . . . . . . . . . Robots Corrupted 4 | . . . . . . . . . . . . . . 4 Combat Hostiles 4 | . . . . . . . . . . . . . . 4 Parts Fried 11 | . . . . . 1 . . . . . . . . 10 Impact Corruptions 1 | . . . . . . . . . . . . . . 1 Robots Melted 2 | . . . . 1 . . . . . . . . . 1 Combat Hostiles 2 | . . . . 1 . . . . . . . . . 1 Parts Melted 34 | . . . . 4 10 . . 2 2 1 7 4 . 4 Heat Transferred 16033 | . 235 . . 1332 3939 . 650 1125 925 950 4593 1455 . 829 Parts Sabotaged . | . . . . . . . . . . . . . . . Parts Stolen . | . . . . . . . . . . . . . . . Parts Stripped . | . . . . . . . . . . . . . . . Power Chain Reactions 6 | . 1 . . . . . . . 1 . . 3 . 1 Alert | -11 -10 -10 -9 -8 -7 -7 -7 -7 -6 -5 -5 -4 -3 -3 ------- Run | Yrd Mat Min Mat Mat Fac Was Fac Sto Fac Fac Ext Fac Res Tes Maximum Alert Level 2 | . . . . 1 1 . . . . . 1 2 1 . Low Security (%) 84 | 100 100 100 100 77 86 100 100 100 100 100 59 63 40 100 Level 1 10 | . . . . 22 13 . . . . . 40 . 59 . Level 2 5 | . . . . . . . . . . . . 36 . . Level 3 . | . . . . . . . . . . . . . . . Level 4 . | . . . . . . . . . . . . . . . Level 5 . | . . . . . . . . . . . . . . . High Security . | . . . . . . . . . . . . . . . Max Security . | . . . . . . . . . . . . . . . Peak Influence 592 | . 73 94 29 287 327 114 73 117 129 161 260 592 261 124 Initial 261 | . . 14 28 . 108 114 51 9 46 58 65 119 261 101 Average 97 | . 24 60 11 98 101 95 21 65 48 81 128 195 209 61 Influence Increases 5108 | . 150 100 36 521 1029 . 206 368 181 279 645 1037 30 526 Destroy 0b10 Robot/C 2760 | . 80 80 . 360 640 . 120 180 120 80 400 400 20 280 Destroy 0b10 Robot/NC 195 | . . . 5 5 25 . 5 25 10 5 55 45 . 15 Destroy Leader 672 | . 30 20 . 90 136 . 50 52 22 22 56 120 10 64 Allied During Kill 49 | . . . . . . . . . . . 49 . . . Successful Hack 163 | . 7 . 1 18 22 . 26 24 5 4 42 14 . . Disable Machine 600 | . 15 . 30 . 120 . . 30 . 60 15 285 . 45 Destroy Structure 369 | . 3 . . 3 41 . 5 12 9 78 28 158 . 32 Partial Spotted 15 | . . . . . . . . 15 . . . . . . Lose Combat Pursuer 285 | . 15 . . 45 45 . . 30 15 30 . 15 . 90 Influence Decreases 5108 | . 113 63 110 282 941 253 259 287 164 263 536 782 348 707 Entered New Map 1078 | . . 23 46 . 131 213 23 12 56 61 70 125 238 80 Time Decay 2925 | . 113 30 64 262 572 30 236 235 98 152 269 407 110 347 Lost Part 770 | . . 10 . 20 30 10 . 40 10 50 70 250 . 280 Lost Ally 80 | . . . . . . . . . . . 80 . . . Purge Threat 255 | . . . . . 208 . . . . . 47 . . . Squads Dispatched 43 | . 2 . 1 2 8 . 2 2 3 2 3 8 . 10 Investigation 6 | . . . . 2 1 . . . 1 . 1 . . 1 Extermination 9 | . . . . . 4 . . . 1 . . 2 . 2 Reinforcement 20 | . 2 . 1 . 2 . 1 2 1 2 2 3 . 4 Assault . | . . . . . . . . . . . . . . . Garrison 8 | . . . . . 1 . 1 . . . . 3 . 3 Intercept . | . . . . . . . . . . . . . . . Searches Triggered . | . . . . . . . . . . . . . . . Construction Impeded 5 | . . . . . 1 . . . . . 2 1 . 1 Haulers Reinforced . | . . . . . . . . . . . . . . . Active Scanning Responses . | . . . . . . . . . . . . . . . Cargo Convoy Interrupts . | . . . . . . . . . . . . . . . Stealth | -11 -10 -10 -9 -8 -7 -7 -7 -7 -6 -5 -5 -4 -3 -3 --------- Run | Yrd Mat Min Mat Mat Fac Was Fac Sto Fac Fac Ext Fac Res Tes Distress Signals 20 | . 2 . 3 1 3 . . 3 . 1 1 4 . 2 Communications Jammed 4 | . . . . . . . . 4 . . . . . . Distress Signals 3 | . . . . . . . . 3 . . . . . . Times Spotted 247 | . 6 4 11 26 45 6 7 16 9 15 21 30 2 49 Peak Tracking Total 23 | . 3 4 10 7 7 6 2 3 3 5 4 7 2 23 Tactical Retreats 15 | . 1 . . 3 2 . . 2 1 1 . 1 . 4 Traps | -11 -10 -10 -9 -8 -7 -7 -7 -7 -6 -5 -5 -4 -3 -3 ------- Run | Yrd Mat Min Mat Mat Fac Was Fac Sto Fac Fac Ext Fac Res Tes Traps Triggered 20 | . 1 . . 3 7 . 2 5 1 . . 1 . . Indirectly 2 | . . . . 2 . . . . . . . . . . Trap Hack Attempts . | . . . . . . . . . . . . . . . Triggered . | . . . . . . . . . . . . . . . Disarmed . | . . . . . . . . . . . . . . . Reprogrammed . | . . . . . . . . . . . . . . . Reused . | . . . . . . . . . . . . . . . Traps Extracted . | . . . . . . . . . . . . . . . Installed . | . . . . . . . . . . . . . . . Triggered . | . . . . . . . . . . . . . . . Machines | -11 -10 -10 -9 -8 -7 -7 -7 -7 -6 -5 -5 -4 -3 -3 ---------- Run | Yrd Mat Min Mat Mat Fac Was Fac Sto Fac Fac Ext Fac Res Tes Machines Disabled 40 | . 1 . 2 . 8 . . 2 . 4 1 19 . 3 Max in Single Turn 8 | . 1 . 1 . 5 . . 1 . 4 . 8 . 1 Garrison Access 2 | . . . . . 1 . 1 . . . . . . . Machines Repaired . | . . . . . . . . . . . . . . . Machines Dismantled 2 | . . . 2 . . . . . . . . . . . Machines Sabotaged . | . . . . . . . . . . . . . . . Overloaded Fab Kills . | . . . . . . . . . . . . . . . Hacking | -11 -10 -10 -9 -8 -7 -7 -7 -7 -6 -5 -5 -4 -3 -3 --------- Run | Yrd Mat Min Mat Mat Fac Was Fac Sto Fac Fac Ext Fac Res Tes Machines Accessed 47 | . 3 . 2 3 12 . 3 7 1 2 8 2 1 3 Terminals 37 | . 3 . 2 3 7 . 1 6 1 1 8 1 1 3 Fabricators 2 | . . . . . 1 . 1 . . . . . . . Repair Stations 1 | . . . . . 1 . . . . . . . . . Recycling Units . | . . . . . . . . . . . . . . . Scanalyzers 1 | . . . . . 1 . . . . . . . . . Garrison Access 6 | . . . . . 2 . 1 1 . 1 . 1 . . Total Hacks 109 | . 7 . 9 12 25 . 9 12 3 3 18 4 1 6 Successful 39 | . 3 . 3 8 10 . 4 1 1 1 7 1 . . Failed 70 | . 4 . 6 4 15 . 5 11 2 2 11 3 1 6 Catastrophic 16 | . 1 . . 1 4 . 1 4 . 1 1 2 1 . Database Lockouts . | . . . . . . . . . . . . . . . Manual 18 | . 4 . 2 2 2 . . 3 . . 3 . . 2 Terminals 91 | . 7 . 9 12 16 . 4 11 3 2 18 2 1 6 Fabricators 3 | . . . . . 2 . 1 . . . . . . . Repair Stations 3 | . . . . . 3 . . . . . . . . . Recycling Units . | . . . . . . . . . . . . . . . Scanalyzers 1 | . . . . . 1 . . . . . . . . . Garrison Access 11 | . . . . . 3 . 4 1 . 1 . 2 . . Terminal Hacks 33 | . 3 . 3 8 7 . 2 . 1 1 7 1 . . Record 3 | . . . 3 . . . . . . . . . . . Prototype ID Bank 1 | . . . . 1 . . . . . . . . . . Open Door 5 | . . . . . . . . . . 1 4 . . . Open DSF 2 | . . . . . 1 . . . 1 . . . . . Branch Access Points 4 | . 1 . . 2 . . 1 . . . . . . . Fabricator Index 1 | . . . . . . . . . . . 1 . . . Alert Level 4 | . . . . 2 2 . . . . . . . . . Unreport Threat 3 | . . . . . 2 . . . . . 1 . . . Locate Traps 2 | . . . . . . . . . . . 1 1 . . Dispatch Records 2 | . . . . 1 1 . . . . . . . . . Patrol Status 1 | . . . . 1 . . . . . . . . . . Zone Layout 5 | . 2 . . 1 1 . 1 . . . . . . . Fabricator Hacks 2 | . . . . . 1 . 1 . . . . . . . Build 2 | . . . . . 1 . 1 . . . . . . . Repair Station Hacks 1 | . . . . . 1 . . . . . . . . . Scan Component 1 | . . . . . 1 . . . . . . . . . Recycling Unit Hacks . | . . . . . . . . . . . . . . . Scanalyzer . | . . . . . . . . . . . . . . . Garrison Access Hacks 2 | . . . . . 1 . 1 . . . . . . . Seal Access 2 | . . . . . 1 . 1 . . . . . . . Unauthorized Hacks 1 | . . . . . . . . 1 . . . . . . Terminals 1 | . . . . . . . . 1 . . . . . . Track 1 | . . . . . . . . 1 . . . . . . Fabricators . | . . . . . . . . . . . . . . . Repair Stations . | . . . . . . . . . . . . . . . Recycling Units . | . . . . . . . . . . . . . . . Scanalyzers . | . . . . . . . . . . . . . . . Garrison Access . | . . . . . . . . . . . . . . . Data Cores Recovered 2 | . . . . . . . 1 1 . . . . . . Used 1 | . . . . . . . . 1 . . . . . . Hacking Detections 40 | . 2 . 2 3 9 . 2 7 1 1 7 2 1 3 Full Trace Events 4 | . . . . 1 1 . . . . . 1 . . 1 Feedback Events . | . . . . . . . . . . . . . . . Feedback Blocked . | . . . . . . . . . . . . . . . Robot Schematics Acquired . | . . . . . . . . . . . . . . . Robots Built 2 | . . . . . 2 . . . . . . . . . Authchips . | . . . . . . . . . . . . . . . Time 81 | . . . . . 81 . . . . . . . . . Total Robot Build Rating 2 | . . . . . 2 . . . . . . . . . Part Schematics Acquired . | . . . . . . . . . . . . . . . Parts Built . | . . . . . . . . . . . . . . . Authchips . | . . . . . . . . . . . . . . . Time 47 | . . . . . . . 47 . . . . . . . Total Part Build Rating . | . . . . . . . . . . . . . . . Parts Repaired . | . . . . . . . . . . . . . . . Time . | . . . . . . . . . . . . . . . Parts Recycled . | . . . . . . . . . . . . . . . Recycled Matter . | . . . . . . . . . . . . . . . Retrieved Matter . | . . . . . . . . . . . . . . . Retrieved Components . | . . . . . . . . . . . . . . . Parts Scanalyzed . | . . . . . . . . . . . . . . . Part Schematics Acquired . | . . . . . . . . . . . . . . . Parts Damaged . | . . . . . . . . . . . . . . . Bothacking | -11 -10 -10 -9 -8 -7 -7 -7 -7 -6 -5 -5 -4 -3 -3 ------------ Run | Yrd Mat Min Mat Mat Fac Was Fac Sto Fac Fac Ext Fac Res Tes Used RIF Installer . | . . . . . . . . . . . . . . . Robots Hacked . | . . . . . . . . . . . . . . . Non-combat . | . . . . . . . . . . . . . . . Combat . | . . . . . . . . . . . . . . . Robot Hacks Applied . | . . . . . . . . . . . . . . . Relay Couplers Released 4 | . . . . . 4 . . . . . . . . . Programmers 4 | . . . . . 4 . . . . . . . . . Fabnet Peak Effective % . | . . . . . . . . . . . . . . . Robots Rewired 3 | . . . . . . . . . . . 3 . . . Allies Hacked . | . . . . . . . . . . . . . . . Hacks Repelled . | . . . . . . . . . . . . . . . Allies | -11 -10 -10 -9 -8 -7 -7 -7 -7 -6 -5 -5 -4 -3 -3 -------- Run | Yrd Mat Min Mat Mat Fac Was Fac Sto Fac Fac Ext Fac Res Tes Total Allies 10 | . . . . . 2 . . . . . 8 . . . Largest Group 5 | . . . . . 2 . . . . . 5 . . . Highest-Rated Group 146 | . . . . . 18 . . . . . 146 . . . Highest-Rated Ally 39 | . . . . . 9 . . . . . 39 . . . Total Orders 4 | . . . . . 4 . . . . . . . . . DROP 1 | . . . . . 1 . . . . . . . . . PICKUP 1 | . . . . . 1 . . . . . . . . . COLLECT 2 | . . . . . 2 . . . . . . . . . Ally Attacks 52 | . . . . . . . . . . . 52 . . . Total Damage 801 | . . . . . . . . . . . 801 . . . Kills 9 | . . . . . . . . . . . 9 . . . Allies Corrupted . | . . . . . . . . . . . . . . . Allies Melted . | . . . . . . . . . . . . . . . Intel | -11 -10 -10 -9 -8 -7 -7 -7 -7 -6 -5 -5 -4 -3 -3 ------- Run | Yrd Mat Min Mat Mat Fac Was Fac Sto Fac Fac Ext Fac Res Tes Active Infowar (turns) 2617 | . . . . . . . 110 282 138 328 666 836 . 257 Optics 1968 | . . . . . . . . . 138 328 666 836 . . Sensors 823 | . . . . . . . . . . . . 566 . 257 Cloaking 652 | . . . . . . . . . . . 434 218 . . Jamming 392 | . . . . . . . 110 282 . . . . . . Robot Analysis Total . | . . . . . . . . . . . . . . . Derelict Logs Recovered . | . . . . . . . . . . . . . . . Drone Launches . | . . . . . . . . . . . . . . . Drone Recoveries . | . . . . . . . . . . . . . . . Exploration | -11 -10 -10 -9 -8 -7 -7 -7 -7 -6 -5 -5 -4 -3 -3 ------------- Run | Yrd Mat Min Mat Mat Fac Was Fac Sto Fac Fac Ext Fac Res Tes Turns Passed 8113 | 71 436 72 177 669 2037 76 639 505 235 328 666 1173 236 793 Spaces Moved 4568 | 57 284 29 113 286 1182 67 441 268 113 208 324 664 135 397 Core 37 | 17 . . . 2 . . . . . . . 16 . 2 Treads 692 | . . . . 161 531 . . . . . . . . . Legs 2347 | 40 284 29 113 123 5 . . . 78 208 324 618 135 390 Wheels 1487 | . . . . . 646 67 441 268 35 . . 30 . . Hover . | . . . . . . . . . . . . . . . Flight 5 | . . . . . . . . . . . . . . 5 Fastest Speed 40 | 50 120 120 120 120 115 115 115 115 115 120 120 120 120 40 Average Speed 129 | 100 120 120 120 164 138 115 115 115 120 121 120 131 153 125 Slowest Speed 550 | 120 120 120 120 550 400 115 115 115 260 123 122 260 190 260 Overloaded Moves . | . . . . . . . . . . . . . . . Propulsion Burnouts . | . . . . . . . . . . . . . . . Robots Hopped . | . . . . . . . . . . . . . . . Potential Cave-ins 5 | . . . . . 2 . . . . . . . . 3 Cave-ins Triggered . | . . . . . . . . . . . . . . . Exploration Rate (%) 27 | 4 48 6 16 36 38 66 13 53 8 11 46 20 3 38 Regions Visited 14 Branch Regions 4 Pre-discovered Areas . | . . . . . . . . . . . . . . . Known Exits Taken 2 | . 1 . . . . . 1 . . . . . . . Unknown Exits Taken 10 | 1 . 1 1 1 . . . 1 1 1 1 1 1 . Scrap Searched . | . . . . . . . . . . . . . . . Spaces Dug 10 | . . . . . . . . 1 . 2 . 7 . . Terrain Destroyed 243 | . 2 . . . 61 . 3 6 7 44 . 93 . 27 Melee 1 | . . . . . . . . 1 . . . . . . Projectile 37 | . . . . . 5 . 3 5 . 6 . 12 . 6 AOE 203 | . 2 . . . 56 . . . 7 38 . 80 . 20 Terrain Rammed . | . . . . . . . . . . . . . . . Walls Destroyed . | . . . . . . . . . . . . . . . Machines Disabled . | . . . . . . . . . . . . . . . Actions | -11 -10 -10 -9 -8 -7 -7 -7 -7 -6 -5 -5 -4 -3 -3 --------- Run | Yrd Mat Min Mat Mat Fac Was Fac Sto Fac Fac Ext Fac Res Tes Total 5916 | 68 354 48 134 396 1423 66 542 374 169 242 483 870 156 591 Wait 384 | . 23 . . 19 59 . 49 43 14 1 22 83 4 67 Move 4555 | 56 283 28 112 285 1182 66 440 267 112 207 323 663 134 397 Hop . | . . . . . . . . . . . . . . . Pick Up 107 | 6 10 2 . 10 22 . 9 5 5 1 10 16 2 9 Fast Attach 78 | 6 3 . 1 4 9 . 5 4 4 1 6 19 2 14 Attach 61 | . . 1 3 4 13 . 2 4 3 4 6 14 1 6 Detach 1 | . . . . . . . . . . 1 . . . . Swap 91 | . 7 5 3 13 11 . 6 4 5 6 14 9 6 2 Drop 131 | . 14 2 1 13 32 . 15 5 8 1 15 11 4 10 Fire 406 | . 13 10 5 44 79 . 15 36 18 12 53 48 3 70 Melee 19 | . . . . . . . . 6 . 7 . 6 . . Ram 1 | . . . . . . . . . . . . 1 . . Kick 17 | . . . 3 4 . . . . . 1 1 . . 8 Crush 1 | . . . . . . . 1 . . . . . . . Escape Stasis 24 | . . . . . 16 . . . . . . . . 8 Rewire 33 | . . . . . . . . . . . 33 . . . Trap . | . . . . . . . . . . . . . . . Miscellaneous 7 | . 1 . 6 . . . . . . . . . . . Route ------- -11/Scrapyard -10/Materials (discovered 2 exits: *Min x2) -10/Mines -9/Materials -8/Materials -7/Factory -7/Waste -7/Factory (discovered 3 exits: *Sto / Low x2) -7/Storage -6/Factory -5/Factory -5/Extension -4/Factory -3/Research -3/Testing History --------- Turn | Location | Event 17 | -11/Scrapyard | Discovered new exit (range 15) 72 | -11/Scrapyard | Entered Materials 151 | -10/Materials | Discovered new exit (range 14) 242 | -10/Materials | Identified exit to Mines 318 | -10/Materials | Build established: Mutant 508 | -10/Materials | Entered Mines 510 | -10/Mines | Discovered new exit (range 10) 580 | -10/Mines | Entered Materials 580 | -9/Materials | Evolved 2 slots: Propulsion x1, Utility x1 743 | -9/Materials | Discovered new exit (range 13) 757 | -9/Materials | Entered another Materials area 757 | -8/Materials | Evolved 2 slots: Utility x2 1062 | -8/Materials | Build established: Scavenger-Mutant 1307 | -8/Materials | Destroyed 8 combat bots 1411 | -8/Materials | Discovered new exit (range 10) 1426 | -8/Materials | Entered Factory 1426 | -7/Factory | Evolved 2 slots: Utility x1, Weapon x1 1535 | -7/Factory | Fabricated R-06 Scavenger? 1735 | -7/Factory | Build established: Scavenger-Gunner 2073 | -7/Factory | Build established: Gunner 2180 | -7/Factory | Garrison activated, responded to threat 3463 | -7/Factory | Sucked down chute 3463 | -7/Factory | Entered Waste 3475 | -7/Waste | Spotted C-40 Crusher 3486 | -7/Waste | Spotted C-40 Crusher 3499 | -7/Waste | Spotted C-40 Crusher 3503 | -7/Waste | Spotted C-40 Crusher 3505 | -7/Waste | Spotted C-40 Crusher 3508 | -7/Waste | Crushed by Compactor (1 part destroyed, 1 dropped) 3522 | -7/Waste | Discovered new exit (range 16) 3524 | -7/Waste | Spotted C-40 Crusher 3539 | -7/Waste | Entered Factory 3682 | -7/Factory | Garrison activated, responded to threat 3882 | -7/Factory | Identified exit to Storage 3882 | -7/Factory | Identified exit to Lower Caves 4178 | -7/Factory | Entered Storage 4468 | -7/Storage | System corruption reached 10% 4515 | -7/Storage | Lost 4 parts (1n3u) 4653 | -7/Storage | Discovered new exit (range 16) 4683 | -7/Storage | Entered Factory 4683 | -6/Factory | Evolved 2 slots: Utility x2 4698 | -6/Factory | Identified exit to DSF 4781 | -6/Factory | Spotted B-75 Beast 4850 | -6/Factory | Discovered new exit (range 12) 4918 | -6/Factory | Entered another Factory area 4918 | -5/Factory | Evolved 2 slots: Power x1, Propulsion x1 5126 | -5/Factory | Spotted B-75 Beast 5240 | -5/Factory | Discovered new exit (range 6) 5246 | -5/Factory | Entered Extension 5464 | -5/Extension | Rescued a captive Derelict 5465 | -5/Extension | Rescued a captive Derelict 5527 | -5/Extension | Lost 4 allies 5554 | -5/Extension | Rescued a captive Derelict 5559 | -5/Extension | Rescued a captive Derelict 5636 | -5/Extension | Rescued a captive Derelict 5640 | -5/Extension | Spotted B-75 Beast 5677 | -5/Extension | Spotted B-75 Beast 5686 | -5/Extension | Destroyed B-75 Beast 5705 | -5/Extension | Lost 4 allies 5707 | -5/Extension | Destroyed B-75 Beast 5843 | -5/Extension | Build established: Scavenger-Gunner 5864 | -5/Extension | Lost 4 parts (1p2n1u) 5896 | -5/Extension | Disrupted transfer network 5911 | -5/Extension | Discovered new exit (range 3) 5912 | -5/Extension | Entered Factory 5912 | -4/Factory | Evolved 2 slots: Utility x1, Weapon x1 6618 | -4/Factory | Spotted B-86 Titan 6681 | -4/Factory | Garrison activated, responded to threat 6746 | -4/Factory | Core integrity fell below 50% 6821 | -4/Factory | Lost 22 parts (3p5n7u7w) 7078 | -4/Factory | Discovered new exit (range 7) 7085 | -4/Factory | Entered Research 7085 | -3/Research | Evolved 2 slots: Utility x2 7284 | -3/Research | Discovered new exit (range 6) 7321 | -3/Research | Entered Testing 7680 | -3/Testing | Garrison activated, responded to threat 7795 | -3/Testing | Lost 12 parts (1p3n3u5w) 7862 | -3/Testing | Lost 3 parts (1p1n1w) 7968 | -3/Testing | Lost 4 parts (2u2w) 8013 | -3/Testing | Scanned by Researcher 8077 | -3/Testing | System corruption reached 10% 8098 | -3/Testing | Core integrity fell below 50% 8109 | -3/Testing | Core integrity fell below 20% 8114 | -3/Testing | Destroyed by G-67 Veteran with Field Laser Last Messages --------------- Slug penetrates Wall. Hvy. Armored Exoskeleton destroyed. Slug penetrates Wall. Penetrated by Slug. Held in stasis. S-43 Plague destroyed. Dropped Med. Storage Unit. Adv. Target Analyzer destroyed. Penetrated by Slug. Slug penetrates Wall. Penetrated by Slug. S-43 Plague destroyed. Acquired Xenon Bombardment Thruster. P-80 Master resets G-67 Veteran, system corruption cleaned. Held in stasis. C-55 Analyst is analyzing... Held in stasis. C-55 Analyst is analyzing... K-01 Serf collects debris. Map ----- +----------------------------------------------------+ | ??????????????# # """???????????????????? | | ??????????????# + " " ??????????????????? | | ??????????????# # "" #????????????????? | | ??????????????# # " """???????????????????? | | ??????????????# #? "" "?????????????????????? | | ??????????????# #? "?????????????????????? | | ??????????????# #?? ????????????????????? | | ??????????????# #??##/#####???????????????????? | | ??????????????# %#???? #???????????????????????? | | ??????????????# ########??????????????????????? | | ????########### ! # ?????????????????????? | | ?? " %*=# """ "" ?????????????????????? | | ?? "%" !%# """ """?????????????????????? | | ???############ =# """ S"#????????????????????? | | ??????????????# # """#????????????????????? | | ???????????#### %#[""" """#????????????????????? | | ???????????# =/%""" #??????#?????????????? | | ???????????# #%""" =#???? ??????????????? | | ???????????# h |# ks #??? #???????????????? | | ???????????#### g=p#####/###### #???????????????? | | ??????????????#hscscs pk #???????????????? | | ??????????????# ==[s #???????????????? | | ??????????????# [ #???????????????? | | ??????????????# #???????????????? | | ??????????????######## ########???????????????? | | ?????????????????????# @#??????????????????????? | | ?????????????????????# #??????????????????????? | | ?????????????????????# ?????????????????????? | | ?????????????????????# ????????????????????? | | ?????????????????????# ???????????????????? | | ?????????????????????# ??????????????????? | | ?????????????????????####+### ??????????????????? | | ????????????????????????????? ?????????????????? | | ?????????????????????????????? ????????????????? | | ??????????????????????????????###????????????????? | | ?????????????????????????????????????????????????? | | ?????????????????????????????????????????????????? | | ?????????????????????????????????????????????????? | | ?????????????????????????????????????????????????? | | ?????????????????????????????????????????????????? | | ?????????????????????????????????????????????????? | | ?????????????????????????????????????????????????? | | ?????????????????????????????????????????????????? | | ?????????????????????????????????????????????????? | | ?????????????????????????????????????????????????? | | ?????????????????????????????????????????????????? | | ?????????????????????????????????????????????????? | | ?????????????????????????????????????????????????? | | ?????????????????????????????????????????????????? | | | +----------------------------------------------------+ Best States ------------- Heat Dissipation 134 Coolant Potential 65 Energy Generation 31 Energy Capacity 320 Matter Stores 300 Matter Capacity 500 Sight Range 22 Robot Scan Range 16 Terrain Scan Density 10 Jamming Range 12 Cloak Strength 2 Base Temperature (-) 200 Armor Coverage 600 Resistance: KI 25 Resistance: EM 20 Weapon Cycling 20 Evasion (%) 70 Targeting Accuracy 12 Target Analysis 12 Core Analysis 6 Recoil Reduction 3 Item Schematics ----------------- None Robot Schematics ------------------ None Fabricated ------------ R-06 Scavenger | x2 | -7/Factory | Preloaded Repaired ---------- Nothing Alien Tech Used ----------------- None Achievements -------------- None Challenges ------------ None Game ------ Seed WaveImpactDetector Manual? 0 Play Time 01:59:20 Cumulative 75.9 hours Start 2025.06.21 @ 11:43:13 End 2025.06.21 @ 15:09:48 Sessions 1 Manual Loads 0 Difficulty Rogue Special Mode None Game No. 47 Rogue 47 Adventurer 0 Explorer 0 Win Type - Total 0 Types 0/0/0/0/0/0/0/0/0/0 Lore% 32 Gallery% 42 Achievement% 39 Wizard Run 0 Options --------- Layout 1 ASCII 0 Keyboard 0 Movement Arrows Keybinds 0 Fullscreen 1 Font 24/Smallcaps Map View 50x35 Zoom Use 0% Tactical HUD 0 Map Filters NONE Filters NONE Steam 1 RUN: ced166a1-0d3b-4d01-8601-0b238298547f